Cogmind - Beta 16 @@@ ROGUE MODE // 2025.11.10 @ 20:54:44 Player: Lazz Result: Destroyed by S-27 Virus with Autogun Performance ------------- Evolutions (5) 2500 Regions Visited (10) 2000 Robots Destroyed (73) 365 Value Destroyed (2009) 2009 Prototype IDs (0) 0 Alien Tech Used (0) 0 Bonus (700) 700 TOTAL SCORE: 7574 Bonus ------- Entered Garrisons 200 Entered DSFs 500 Cogmind --------- Core Integrity 0/1000 Matter 300/300 Energy 99/100 System Corruption 3% Temperature Cool (2) Movement Hovering (110) Ox1 Location -5/Upper Caves Parts ------- > --- POWER (1) -------- (None) > --- PROPULSION (5) --- Gyrokinetic Inverter > --- UTILITY (7) ------ Medium Storage Unit Advanced Terrain Scan Processor Advanced Targeting Computer Core Analyzer System Shield Improved Corruption Screen > --- WEAPON (4) ------- Makeshift Hammer Makeshift Sword > --- INVENTORY (10) --- Advanced Heat Sink Medium Matter Pod (100) Core Analyzer Peak State ------------ > --- POWER ------------ Light Ion Engine > --- PROPULSION ------- Advanced Treads Advanced Treads Advanced Treads Medium Treads Medium Treads > --- UTILITY ---------- Large Storage Unit Advanced Sensor Array Advanced Targeting Computer Advanced Targeting Computer Weapon Shielding > --- WEAPON ----------- Heavy Plasma Cannon Heavy Plasma Cannon Heavy Plasma Cannon Heavy Plasma Cannon > --- INVENTORY -------- Medium Treads Advanced Heat Sink Medium Matter Pod Core Analyzer Improved Medium Armor Plating Relay Coupler [Grunt] Relay Coupler [Heavy] Improved EM Pulse Cannon Improved EM Pulse Cannon [Rating: 54] Favorites ----------- Power Light Ion Engine Engine Light Ion Engine Power Core Light Nuclear Core Propulsion Advanced Treads Treads Advanced Treads Leg Aluminum Leg Hover Unit Gyrokinetic Inverter Utility Advanced Targeting Computer Device Advanced ECM Suite Storage Large Storage Unit Processor Advanced Targeting Computer Hackware System Shield Protection Hardened Light Armor Plating Weapon Light Assault Rifle Energy Gun Field Laser Energy Cannon Heavy Plasma Cannon Ballistic Gun Light Assault Rifle Special Weapon Improved Plasma Cutter Impact Weapon Great Maul Slashing Weapon Katana Build | -11 -10 -9 -8 -7 -7 -6 -6 -5 -5 -5 ------- Run | Yrd Mat Mat Mat Fac Gar Fac DSF Fac Upp Upp Slots Evolved 10 | . . 2 2 2 . 2 . 2 . . Power . | . . . . . . . . . . . Propulsion 3 | . . . . 1 . 2 . . . . Utility 5 | . . . 2 1 . . . 2 . . Weapon 2 | . . 2 . . . . . . . . Parts Attached 82 | 7 5 10 15 5 8 4 6 10 10 2 Power 12 | 1 1 1 1 . 1 1 1 2 3 . Engine 5 | 1 1 1 . . . 1 . . 1 . Core 7 | . . . 1 . 1 . 1 2 2 . Reactor . | . . . . . . . . . . . Propulsion 20 | 2 2 2 5 1 4 2 1 1 . . Treads 17 | . 2 2 5 1 4 2 1 . . . Leg 2 | 2 . . . . . . . . . . Wheel . | . . . . . . . . . . . Hover 1 | . . . . . . . . 1 . . Flight . | . . . . . . . . . . . Utility 25 | 2 . 2 8 2 . 1 . 6 2 2 Device 7 | 1 . . 1 1 . 1 . 2 1 . Storage 3 | 1 . 1 . . . . . . 1 . Processor 8 | . . . 4 . . . . 3 . 1 Hackware 1 | . . . . . . . . 1 . . Protection 6 | . . 1 3 1 . . . . . 1 Artifact . | . . . . . . . . . . . Weapon 25 | 2 2 5 1 2 3 . 4 1 5 . Energy Gun 6 | 2 . 2 . 2 . . . . . . Energy Cannon 6 | . . . . . . . 4 . 2 . Ballistic Gun 8 | . 2 3 1 . 2 . . . . . Ballistic Cannon . | . . . . . . . . . . . Launcher . | . . . . . . . . . . . Special Weapon 1 | . . . . . . . . 1 . . Impact Weapon 2 | . . . . . . . . . 2 . Slashing Weapon 2 | . . . . . 1 . . . 1 . Piercing Weapon . | . . . . . . . . . . . Special Melee Weapon . | . . . . . . . . . . . Unidentified Prototypes . | . . . . . . . . . . . Corrupted Parts 1 | . . . . . . . . . 1 . System Corruption 3 | . . . . . . . . . 3 . Parts Lost 47 | . 1 4 1 4 13 . 16 . 6 2 Power 9 | . . 1 1 . 2 . 2 . 3 . Propulsion 13 | . . 2 . . 5 . 6 . . . Utility 9 | . 1 . . 1 1 . 4 . 1 1 Weapon 16 | . . 1 . 3 5 . 4 . 2 1 Highest Loss Streak 16 | . 1 4 1 2 7 . 16 . 4 2 To Critical Strikes 1 | . . . . . . . . . . 1 Average Backups 8 | 3 7 7 14 14 12 5 8 5 4 3 Power . | . 2 1 2 . . . . . . . Propulsion 2 | 1 2 2 3 8 7 1 . . . . Utility 3 | . 1 1 4 3 4 4 5 3 3 3 Weapon 1 | . 1 1 4 2 . . 2 2 1 . Tool/Special . | . . . . . . . . . . . Unused Backups 14 | . 1 . 5 . . 1 3 1 . 3 Power 2 | . 1 . 1 . . . . . . . Propulsion 2 | . . . 2 . . . . . . . Utility 7 | . . . 1 . . . 3 . . 3 Weapon 3 | . . . 1 . . 1 . 1 . . Tool/Special . | . . . . . . . . . . . Average Slot Usage (%) 72 | . 96 94 98 98 72 67 62 29 44 62 Engine 3 | . 14 10 6 . . 4 1 . . . Core 2 | . . . 1 7 3 . . 4 2 . Treads 14 | . 21 21 18 23 18 32 18 . . . Hover 1 | . . . . . . . . 1 5 5 Device 4 | . 11 . 5 7 2 3 4 4 2 . Storage 6 | . 14 11 9 7 7 6 5 . . 5 Processor 13 | . . . 16 15 15 13 10 13 23 25 Hackware 1 | . . . . . . . . . 5 5 Protection 3 | . . 10 4 6 4 6 2 . . 1 Energy Gun 7 | . 25 . 18 15 7 . . . . . Ballistic Gun 9 | . 2 40 18 14 5 . . . . . Peak Build Rating 54 | 9 9 16 33 41 41 34 54 36 43 43 Average Rating 26 | 5 8 9 26 37 29 30 35 24 33 42 On Entrance 21 | . 9 6 16 33 37 18 34 4 36 43 Avg Prop Armor Cover (%) 15 | . . . 7 . . 15 18 . . . Naked Turns . | . . . . . . . . . . . Heaviest Build 65 | 12 14 34 38 42 40 25 65 17 26 22 Greatest Support 122 | 20 40 40 50 73 73 122 66 11 11 11 Greatest Overweight (x) 20 | . 3 . 1 . 6 . 20 5 2 1 Average Overweight (x) . | . . . . . . . 2 2 . 1 Largest Inventory Capacity 15 | 8 8 15 15 15 15 15 15 5 10 10 Average Capacity 10 | 7 8 10 15 15 15 15 14 5 5 10 Most Carried 15 | 5 8 15 15 15 14 9 9 5 5 3 Average Carried 8 | 4 7 7 14 14 12 5 8 5 4 3 Final Capacity 15 | 8 8 15 15 15 15 15 5 5 10 10 Final Carried 15 | 5 8 14 15 13 9 9 5 5 3 3 Class Distribution -------------------- 51% | Mutant 29% | Gunner 12% | Tank 3% | Derelict-Mutant Dominant Class ---------------- Mutant | -10/Materials Tank | -9/Materials Gunner | -8/Materials Gunner | -7/Factory Mutant | -7/Garrison Mutant | -6/Factory Pyromaniac-Gunner | -6/DSF Mutant | -5/Factory Mutant | -5/Upper Caves Derelict-Mutant | -5/Upper Caves Resources | -11 -10 -9 -8 -7 -7 -6 -6 -5 -5 -5 ----------- Run | Yrd Mat Mat Mat Fac Gar Fac DSF Fac Upp Upp Matter Collected 1432 | 270 122 222 251 205 64 . 66 80 135 17 Remotely 10 | . . . . . . . . . 10 . Salvage Created 2669 | 207 345 329 559 464 315 . 37 . 358 55 Parts 140 | 13 25 28 23 25 12 3 2 . 5 4 Haulers Intercepted 4 | . 1 1 1 1 . . . . . . Recyclers Shooed 2 | . 1 1 . . . . . . . . Parts Field Recycled . | . . . . . . . . . . . Retrieved Matter . | . . . . . . . . . . . Parts Self-Destructed 8 | . . . . . . . . . 8 . Prevented 3 | . . . . . . . . . 2 1 Parts Restored . | . . . . . . . . . . . Kills | -11 -10 -9 -8 -7 -7 -6 -6 -5 -5 -5 ------- Run | Yrd Mat Mat Mat Fac Gar Fac DSF Fac Upp Upp Combat Hostiles Destroyed 52 | . 12 10 10 7 8 . 1 . 2 2 Melee 8 | . . . . . 5 . 1 . . 2 Guns 42 | . 12 10 10 7 3 . . . . . Cannons 1 | . . . . . . . . . 1 . Classes Destroyed 13 | 3 4 2 2 1 1 . . . . . Worker 5 | 2 1 . 1 1 . . . . . . Builder 2 | . . . 1 1 . . . . . . Tunneler 5 | 4 . . . . . 1 . . . . Hauler 4 | . 1 1 1 1 . . . . . . Recycler 1 | 1 . . . . . . . . . . Operator 1 | . . . 1 . . . . . . . Watcher 3 | . 1 . 2 . . . . . . . Swarmer 24 | . 9 6 3 . 3 . . . 1 2 Grunt 23 | . 3 2 7 6 4 . 1 . . . Duelist 1 | . . 1 . . . . . . . . Sentry 1 | . . 1 . . . . . . . . Hunter 2 | . . . . 1 . . . . 1 . Programmer 1 | . . . . . 1 . . . . . Best Kill Streak 10 | 5 7 10 5 4 3 1 1 . 1 2 Combat Bots Only 10 | . 4 10 3 3 3 . 1 . 1 2 Max Kills in Single Turn 2 | 1 1 2 2 2 1 1 1 . 1 1 Gunslinging 1 | . . 1 . . . . . . . . Exploded . | . . . . . . . . . . . Melee 1 | . . . . . 1 . 1 . . 1 Uniques/NPCs Destroyed . | . . . . . . . . . . . Combat | -11 -10 -9 -8 -7 -7 -6 -6 -5 -5 -5 -------- Run | Yrd Mat Mat Mat Fac Gar Fac DSF Fac Upp Upp Hostile Shots Fired 815 | . 54 77 42 74 177 . 242 5 115 29 Missed 244 | . 8 27 7 19 51 . 85 . 38 9 Hits 571 | . 46 50 35 55 126 . 157 5 77 20 Projectile 571 | . 46 50 35 55 126 . 157 5 77 20 Critical Strikes 25 | . . 2 2 4 10 . 5 . 1 1 Part Disruptions 1 | . . . . 1 . . . . . . Damage Taken 8528 | . 422 506 466 868 1890 . 2674 97 1300 305 Core 2502 | . 49 117 23 89 461 . 759 97 752 155 Absorbed by Shields 8 | . . . . . 8 . . . . . Redirected to Shielding 85 | . . 31 . . . . 54 . . . Core Remaining (%) 62 | 100 80 70 95 . 21 . 10 . . . Volleys Fired 154 | 11 30 27 30 29 19 . 3 . 5 . Largest 4 | 2 2 4 4 4 3 . 4 . 1 . Hottest 360 | 90 90 83 169 201 138 . 360 . 81 . Shots Fired 454 | 21 60 95 116 114 36 . 7 . 5 . Gun 442 | 21 60 95 116 114 36 . . . . . Cannon 12 | . . . . . . . 7 . 5 . Launcher . | . . . . . . . . . . . Special . | . . . . . . . . . . . Kinetic 225 | . . 95 60 51 19 . . . . . Thermal 210 | 21 60 . 56 57 9 . 7 . . . Explosive . | . . . . . . . . . . . Electromagnetic 19 | . . . . 6 8 . . . 5 . Robot Hit Streak 20 | 5 20 7 13 16 12 . 3 . 7 . Robot Miss Streak 5 | 2 4 5 3 4 2 . 2 . 1 . Penetration Max . | . . . . . . . . . . . Secondary Targets 15 | . 5 6 2 1 1 . . . . . Max Gunslinging Chain 1 | . 1 1 1 1 1 . . . . . Shots Hit Robots 313 | 12 42 53 73 75 40 . 4 . 12 2 Core Hits 134 | 8 20 23 33 27 15 1 1 . 5 1 Critical Kills 2 | . . . 2 . . . . . . . Critical Parts Destroyed 2 | . . . . . . . . . 1 1 Critical Strikes 17 | 3 3 . 5 2 2 . . . 1 1 Burn 12 | 3 3 . 3 2 1 . . . . . Destroy 2 | . . . 2 . . . . . . . Smash 2 | . . . . . . . . . 1 1 Sever 1 | . . . . . 1 . . . . . Melee Attacks 28 | . . . . . 15 . . . 9 4 Impact 5 | . . . . . . . . . 1 4 Slashing 23 | . . . . . 15 . . . 8 . Piercing . | . . . . . . . . . . . Sneak Attacks . | . . . . . . . . . . . Combat Hostiles . | . . . . . . . . . . . Follow-up Attacks 2 | . . . . . . . . . 1 1 Damage Inflicted 4798 | 156 494 474 1074 1090 683 5 134 . 601 87 Guns 3684 | 156 494 474 1073 1081 406 . . . . . Cannons 247 | . . . . . . . 127 . 120 . Explosions . | . . . . . . . . . . . Melee 843 | . . . . . 276 . . . 480 87 Ramming 24 | . . . 1 9 1 5 7 . 1 . Kinetic 1391 | . . 474 372 346 199 . . . . . Thermal 2303 | 156 494 . 701 689 136 . 127 . . . Explosive . | . . . . . . . . . . . Electromagnetic 237 | . . . . 46 71 . . . 120 . Impact 121 | . . . . . . . . . 34 87 Slashing 722 | . . . . . 276 . . . 446 . Piercing . | . . . . . . . . . . . Highest Corruption 3 | . . . . . . . . . 3 3 Average Corruption 3 | . . . . . . . . . 3 3 Corruption Purged . | . . . . . . . . . . . Corruption Blocked . | . . . . . . . . . . . Effects 3 | . . . . . . . . . 2 1 Matter Fused 1 | . . . . . . . . . . 1 Heat Flow Errors 2 | . . . . . . . . . 2 . Overload Shots . | . . . . . . . . . . . Overflow Damage 128 | . . . . . . . . . 81 47 Projectiles 13 | . . . . . . . . . 13 . Explosions . | . . . . . . . . . . . Melee 115 | . . . . . . . . . 68 47 Knockbacks . | . . . . . . . . . . . Impact . | . . . . . . . . . . . Kinetic . | . . . . . . . . . . . Secondary . | . . . . . . . . . . . Self-Inflicted Damage . | . . . . . . . . . . . Shots . | . . . . . . . . . . . Rammed 7 | . . 1 1 2 . 1 1 . 1 . Targets Rammed 10 | . . 1 1 2 1 2 2 . 1 . Kicked . | . . . . . . . . . . . Crushed 3 | . . . . . 1 1 1 . . . Highest Temperature 400 | 220 310 155 400 197 240 . 204 . 170 . Average Temperature 113 | 90 119 52 165 98 121 . 66 . 47 . Received Heat Transfer 2484 | . 75 162 243 432 936 . 555 45 36 . Effects 5 | . 1 . 4 . . . . . . . Shutdowns 2 | . . . 2 . . . . . . . Energy Bleed 1 | . 1 . . . . . . . . . Short Circuit 1 | . . . 1 . . . . . . . Damage (minor) 1 | . . . 1 . . . . . . . Siege Activations . | . . . . . . . . . . . Martial Activations . | . . . . . . . . . . . Shielding Activations . | . . . . . . . . . . . Robots Disrupted . | . . . . . . . . . . . Combat Hostiles . | . . . . . . . . . . . Robots Corrupted 1 | . . . . . . . . . 1 . Combat Hostiles 1 | . . . . . . . . . 1 . Parts Fried 4 | . . . . . . . . . 3 1 Impact Corruptions 2 | . . . . . . . . . 1 1 Robots Melted . | . . . . . . . . . . . Combat Hostiles . | . . . . . . . . . . . Parts Melted 14 | 2 4 . 2 4 2 . . . . . Heat Transferred 6128 | 643 1548 . 1739 1628 370 . 200 . . . Parts Sabotaged . | . . . . . . . . . . . Parts Stolen . | . . . . . . . . . . . Parts Stripped . | . . . . . . . . . . . Power Chain Reactions . | . . . . . . . . . . . Alert | -11 -10 -9 -8 -7 -7 -6 -6 -5 -5 -5 ------- Run | Yrd Mat Mat Mat Fac Gar Fac DSF Fac Upp Upp Maximum Alert Level 1 | . 1 . . . 1 . . . . . Low Security (%) 91 | 100 97 100 100 100 40 100 100 100 . . Level 1 8 | . 2 . . . 59 . . . . . Level 2 . | . . . . . . . . . . . Level 3 . | . . . . . . . . . . . Level 4 . | . . . . . . . . . . . Level 5 . | . . . . . . . . . . . High Security . | . . . . . . . . . . . Max Security . | . . . . . . . . . . . Peak Influence 316 | 15 204 172 153 111 316 155 56 20 . . Initial 155 | . 6 77 32 49 58 155 56 . . . Average 78 | 4 91 91 97 29 203 118 25 1 . . Influence Increases 1886 | 35 319 270 318 212 368 5 45 49 225 40 Destroy 0b10 Robot/C 1040 | . 240 200 200 140 160 . 20 . 40 40 Destroy 0b10 Robot/NC 115 | 35 15 5 30 15 . 5 . . 10 . Destroy Leader 174 | . 44 42 36 22 10 . 10 . 10 . Successful Hack 93 | . 5 22 5 19 28 . . 14 . . Select Force Hacks 20 | . . . . . . . . 20 . . Disable Machine 15 | . . . 15 . . . . . . . Anti-Garrison Action 50 | . . . . . 50 . . . . . Destroy Structure 4 | . . 1 2 1 . . . . . . Lose Combat Pursuer 375 | . 15 . 30 15 120 . 15 15 165 . Influence Decreases 1876 | 25 145 377 285 239 155 221 125 49 188 67 Entered New Map 415 | . 4 107 45 61 25 141 24 . . 8 Time Decay 1065 | 25 131 230 230 138 . 80 . 49 143 39 Lost Part 396 | . 10 40 10 40 130 . 101 . 45 20 Squads Dispatched 10 | . . 1 1 5 . . 1 2 . . Investigation 2 | . . . . 1 . . . 1 . . Extermination 2 | . . . . 1 . . . 1 . . Reinforcement 5 | . . 1 1 2 . . 1 . . . Assault . | . . . . . . . . . . . Garrison 1 | . . . . 1 . . . . . . Intercept . | . . . . . . . . . . . Searches Triggered . | . . . . . . . . . . . Construction Impeded . | . . . . . . . . . . . Haulers Reinforced 1 | . . . . 1 . . . . . . Active Scanning Responses . | . . . . . . . . . . . Cargo Convoy Interrupts . | . . . . . . . . . . . Stealth | -11 -10 -9 -8 -7 -7 -6 -6 -5 -5 -5 --------- Run | Yrd Mat Mat Mat Fac Gar Fac DSF Fac Upp Upp Distress Signals 3 | . 1 . 2 . . . . . . . Communications Jammed . | . . . . . . . . . . . Distress Signals . | . . . . . . . . . . . Times Spotted 118 | . 15 14 15 21 15 . 6 1 20 11 Peak Tracking Total 11 | . 4 6 6 8 10 . 4 1 9 11 Tactical Retreats 19 | . 1 . 1 1 4 . 1 1 10 . ECM-based Alert Blocks 10 | . . . . . . . . . 10 . Traps | -11 -10 -9 -8 -7 -7 -6 -6 -5 -5 -5 ------- Run | Yrd Mat Mat Mat Fac Gar Fac DSF Fac Upp Upp Traps Triggered 3 | . . . . 1 1 . . 1 . . Indirectly . | . . . . . . . . . . . Trap Hack Attempts . | . . . . . . . . . . . Triggered . | . . . . . . . . . . . Disarmed . | . . . . . . . . . . . Reprogrammed . | . . . . . . . . . . . Reused . | . . . . . . . . . . . Traps Extracted . | . . . . . . . . . . . Installed . | . . . . . . . . . . . Triggered . | . . . . . . . . . . . Machines | -11 -10 -9 -8 -7 -7 -6 -6 -5 -5 -5 ---------- Run | Yrd Mat Mat Mat Fac Gar Fac DSF Fac Upp Upp Machines Disabled 2 | . . . 1 . 1 . . . . . Max in Single Turn 1 | . . . 1 . 1 . . . . . Garrison Relay 1 | . . . . . 1 . . . . . Machines Repaired . | . . . . . . . . . . . Machines Dismantled . | . . . . . . . . . . . Machines Sabotaged . | . . . . . . . . . . . Overloaded Fab Kills . | . . . . . . . . . . . Hacking | -11 -10 -9 -8 -7 -7 -6 -6 -5 -5 -5 --------- Run | Yrd Mat Mat Mat Fac Gar Fac DSF Fac Upp Upp Machines Accessed 17 | . 1 3 2 5 1 2 . 3 . . Terminals 11 | . 1 3 1 3 1 1 . 1 . . Fabricators 3 | . . . . . . 1 . 2 . . Repair Stations 1 | . . . . 1 . . . . . . Recycling Units . | . . . . . . . . . . . Scanalyzers 1 | . . . 1 . . . . . . . Garrison Access 1 | . . . . 1 . . . . . . Total Hacks 45 | . 3 15 6 10 2 4 . 5 . . Successful 21 | . 2 6 2 4 2 2 . 3 . . Failed 23 | . 1 9 3 6 . 2 . 2 . . Catastrophic 3 | . . 1 . 1 . . . 1 . . Database Lockouts 1 | . . . 1 . . . . . . . Manual 28 | . 2 14 4 6 1 . . 1 . . Terminals 34 | . 3 15 4 7 2 1 . 2 . . Fabricators 6 | . . . . . . 3 . 3 . . Repair Stations 1 | . . . . 1 . . . . . . Recycling Units . | . . . . . . . . . . . Scanalyzers 2 | . . . 2 . . . . . . . Garrison Access 2 | . . . . 2 . . . . . . Terminal Hacks 8 | . 1 3 . 1 1 1 . 1 . . Record 1 | . . 1 . . . . . . . . Robot Analysis 1 | . 1 . . . . . . . . . Open DSF 2 | . . . . 1 . 1 . . . . Terminal Index 1 | . . 1 . . . . . . . . Coupling Status 1 | . . 1 . . . . . . . . Zone Layout 1 | . . . . . . . . 1 . . Garrison Registry 1 | . . . . . 1 . . . . . Fabricator Hacks 2 | . . . . . . 1 . 1 . . Network Status 2 | . . . . . . 1 . 1 . . Repair Station Hacks . | . . . . . . . . . . . Recycling Unit Hacks . | . . . . . . . . . . . Scanalyzer 1 | . . . 1 . . . . . . . Retrieve Study 1 | . . . 1 . . . . . . . Garrison Access Hacks 1 | . . . . 1 . . . . . . Unlock Access 1 | . . . . 1 . . . . . . Unauthorized Hacks 9 | . 1 3 1 2 1 . . 1 . . Terminals 8 | . 1 3 1 2 1 . . . . . Botnet 8 | . 1 3 1 2 1 . . . . . Fabricators 1 | . . . . . . . . 1 . . Download 1 | . . . . . . . . 1 . . Repair Stations . | . . . . . . . . . . . Recycling Units . | . . . . . . . . . . . Scanalyzers . | . . . . . . . . . . . Garrison Access . | . . . . . . . . . . . Data Cores Recovered . | . . . . . . . . . . . Used . | . . . . . . . . . . . Hacking Detections 14 | . 1 3 1 5 . 2 . 2 . . Full Trace Events 3 | . 1 1 . 1 . . . . . . Feedback Events . | . . . . . . . . . . . Feedback Blocked . | . . . . . . . . . . . Robot Schematics Acquired . | . . . . . . . . . . . Robots Built . | . . . . . . . . . . . Authchips . | . . . . . . . . . . . Time . | . . . . . . . . . . . Total Robot Build Rating . | . . . . . . . . . . . Part Schematics Acquired . | . . . . . . . . . . . Parts Built . | . . . . . . . . . . . Authchips . | . . . . . . . . . . . Time . | . . . . . . . . . . . Total Part Build Rating . | . . . . . . . . . . . Part Studies Acquired 1 | . . . 1 . . . . . . . Parts Repaired . | . . . . . . . . . . . Time . | . . . . . . . . . . . Parts Recycled . | . . . . . . . . . . . Recycled Matter . | . . . . . . . . . . . Retrieved Matter . | . . . . . . . . . . . Retrieved Components . | . . . . . . . . . . . Parts Scanalyzed . | . . . . . . . . . . . Part Schematics Acquired . | . . . . . . . . . . . Parts Damaged . | . . . . . . . . . . . Bothacking | -11 -10 -9 -8 -7 -7 -6 -6 -5 -5 -5 ------------ Run | Yrd Mat Mat Mat Fac Gar Fac DSF Fac Upp Upp Used RIF Installer . | . . . . . . . . . . . Robots Hacked . | . . . . . . . . . . . Non-combat . | . . . . . . . . . . . Combat . | . . . . . . . . . . . Robot Hacks Applied . | . . . . . . . . . . . Relay Couplers Released 5 | . . . . . 5 . . . . . Machine Destruction 5 | . . . . . 5 . . . . . Fabnet Peak Effective % . | . . . . . . . . . . . Robots Rewired . | . . . . . . . . . . . Allies Hacked . | . . . . . . . . . . . Hacks Repelled . | . . . . . . . . . . . Allies | -11 -10 -9 -8 -7 -7 -6 -6 -5 -5 -5 -------- Run | Yrd Mat Mat Mat Fac Gar Fac DSF Fac Upp Upp Total Allies . | . . . . . . . . . . . Largest Group . | . . . . . . . . . . . Highest-Rated Group . | . . . . . . . . . . . Highest-Rated Ally . | . . . . . . . . . . . Total Orders . | . . . . . . . . . . . Ally Attacks . | . . . . . . . . . . . Total Damage . | . . . . . . . . . . . Kills . | . . . . . . . . . . . Allies Corrupted . | . . . . . . . . . . . Allies Melted . | . . . . . . . . . . . Intel | -11 -10 -9 -8 -7 -7 -6 -6 -5 -5 -5 ------- Run | Yrd Mat Mat Mat Fac Gar Fac DSF Fac Upp Upp Active Infowar (turns) 837 | 38 300 . . . . 108 120 132 139 . Sensors 228 | . . . . . . 108 120 . . . Terrain 338 | 38 300 . . . . . . . . . Jamming 132 | . . . . . . . . 132 . . ECM 168 | . . . . . . . . 29 139 . Robot Analysis Total 1 | . 1 . . . . . . . . . Derelict Logs Recovered 2 | . . . . . . . . . 2 . Drone Launches . | . . . . . . . . . . . Drone Recoveries . | . . . . . . . . . . . Exploration | -11 -10 -9 -8 -7 -7 -6 -6 -5 -5 -5 ------------- Run | Yrd Mat Mat Mat Fac Gar Fac DSF Fac Upp Upp Turns Passed 4230 | 116 354 499 517 549 467 179 182 518 724 125 Spaces Moved 2492 | 64 169 245 224 280 228 95 64 308 710 105 Core 247 | 12 4 . . . 6 . 20 205 . . Treads 1225 | . 115 245 224 280 222 95 44 . . . Legs 102 | 52 50 . . . . . . . . . Wheels . | . . . . . . . . . . . Hover 918 | . . . . . . . . 103 710 105 Flight . | . . . . . . . . . . . Fastest Speed 50 | 50 120 160 145 152 145 145 50 50 70 110 Average Speed 136 | 106 149 160 150 154 161 148 230 163 91 110 Slowest Speed 1050 | 120 200 160 225 155 350 151 1050 300 150 110 Overloaded Moves . | . . . . . . . . . . . Propulsion Burnouts . | . . . . . . . . . . . Robots Hopped . | . . . . . . . . . . . Potential Cave-ins . | . . . . . . . . . . . Cave-ins Triggered . | . . . . . . . . . . . Exploration Rate (%) 29 | 4 41 24 21 12 33 4 79 10 74 22 Regions Visited 10 Branch Regions 2 Pre-discovered Areas . | . . . . . . . . . . . Known Exits Taken 2 | . . . . 1 . 1 . . . . Unknown Exits Taken 6 | 1 1 1 1 . . . . 1 1 . Scrap Searched 5 | . . . . . . . . . 2 3 Spaces Dug . | . . . . . . . . . . . Terrain Destroyed . | . . . . . . . . . . . Melee . | . . . . . . . . . . . Projectile . | . . . . . . . . . . . AOE . | . . . . . . . . . . . Terrain Rammed . | . . . . . . . . . . . Walls Destroyed . | . . . . . . . . . . . Machines Disabled . | . . . . . . . . . . . Actions | -11 -10 -9 -8 -7 -7 -6 -6 -5 -5 -5 --------- Run | Yrd Mat Mat Mat Fac Gar Fac DSF Fac Upp Upp Total 2964 | 88 213 301 343 327 276 132 86 320 767 111 Wait 103 | . . . 41 5 2 26 10 . 19 . Move 2483 | 63 168 244 223 280 227 94 63 307 709 105 Hop . | . . . . . . . . . . . Pick Up 58 | 7 5 16 16 3 3 4 1 1 2 . Fast Attach 39 | 5 2 . 1 2 2 2 6 10 7 2 Attach 40 | 2 2 9 5 5 7 3 1 . 6 . Detach 2 | . . . . . . . . . 2 . Swap 12 | . 1 1 10 . . . . . . . Drop 31 | . 5 3 16 1 . 1 . 1 2 2 Fire 154 | 11 30 27 30 29 19 . 3 . 5 . Melee 25 | . . . . . 15 . . . 8 2 Ram 1 | . . . . . . . . . 1 . Kick . | . . . . . . . . . . . Crush 9 | . . 1 1 2 1 2 2 . . . Escape Stasis . | . . . . . . . . . . . Rewire 6 | . . . . . . . . . 6 . Trap . | . . . . . . . . . . . Miscellaneous 1 | . . . . . . . . 1 . . Route ------- -11/Scrapyard -10/Materials -9/Materials -8/Materials -7/Factory -7/Garrison (discovered 3 exits: *Fac x3) -6/Factory -6/DSF -5/Factory -5/Upper Caves -5/Upper Caves History --------- Turn | Location | Event 8 | -11/Scrapyard | Discovered new exit (range 16) 117 | -11/Scrapyard | Entered Materials 305 | -10/Materials | Build established: Mutant 426 | -10/Materials | Discovered new exit (range 12) 471 | -10/Materials | Entered another Materials area 471 | -9/Materials | Evolved 2 slots: Weapon x2 721 | -9/Materials | Lost 4 parts (1p2n1w) 737 | -9/Materials | Destroyed 10 combat bots 784 | -9/Materials | Build established: Tank 937 | -9/Materials | Discovered new exit (range 4) 970 | -9/Materials | Entered another Materials area 970 | -8/Materials | Evolved 2 slots: Utility x2 1234 | -8/Materials | Central database locked down 1292 | -8/Materials | Build established: Gunner 1456 | -8/Materials | Discovered new exit (range 9) 1487 | -8/Materials | Entered Factory 1487 | -7/Factory | Evolved 2 slots: Propulsion x1, Utility x1 2016 | -7/Factory | Garrison activated, responded to threat 2035 | -7/Factory | Identified exit to Garrison 2036 | -7/Factory | Entered Garrison 2071 | -7/Garrison | Discovered new exit (range 68) 2071 | -7/Garrison | Discovered new exit (range 95) 2071 | -7/Garrison | Discovered new exit (range 57) 2166 | -7/Garrison | Triggered checkpoint 2225 | -7/Garrison | Garrison Relay disabled 2318 | -7/Garrison | Triggered checkpoint 2326 | -7/Garrison | Triggered checkpoint 2398 | -7/Garrison | Lost 7 parts (3n1u3w) 2421 | -7/Garrison | Core integrity fell below 50% 2488 | -7/Garrison | Lost 4 parts (1p2n1w) 2502 | -7/Garrison | Build established: Mutant 2503 | -7/Garrison | Entered Factory 2503 | -6/Factory | Evolved 2 slots: Propulsion x2 2682 | -6/Factory | Identified exit to DSF 2682 | -6/Factory | Entered DSF 2732 | -6/DSF | Additional patrols routed to DSF 2849 | -6/DSF | Core integrity fell below 50% 2854 | -6/DSF | Discovered new exit (range 14) 2857 | -6/DSF | Core integrity fell below 20% 2864 | -6/DSF | Entered Factory 2864 | -5/Factory | Evolved 2 slots: Utility x2 2887 | -5/Factory | Lost 16 parts (2p6n4u4w) 3332 | -5/Factory | Discovered new exit (range 11) 3382 | -5/Factory | Entered Upper Caves 3610 | -5/Upper Caves | Learned location of 1 exit from Factory 3775 | -5/Upper Caves | Attracted the attention of an 0b10 outpost 3784 | -5/Upper Caves | Found DCF Scrap (10 items) 3857 | -5/Upper Caves | Core integrity fell below 50% 3893 | -5/Upper Caves | Lost 4 parts (2p2w) 3961 | -5/Upper Caves | Learned Factory terminal intel 4038 | -5/Upper Caves | Core integrity fell below 20% 4059 | -5/Upper Caves | Discovered new exit (range 12) 4106 | -5/Upper Caves | Entered another Upper Caves area 4231 | -5/Upper Caves | Destroyed by S-27 Virus with Autogun Last Messages --------------- 04216_ Destroyed VTOL Module. 04216_ S-27 Virus system corrupted by crushing effect. 04216_ VTOL Module fried. 04216_ S-27 Virus destroyed. 04218_ G-50 Soldier springs to life. 04219_ Mak. Hammer follow-up attack on S-27 Virus. 04219_ S-27 Virus destroyed. 04220_ Imp. Light Armor Plating destroyed. 04225_ Corrupted Autogun self-destruct mechanism malfunctions. 04227_ S-27 Virus destroyed. 04227_ Critical hit (Destroy). 04227_ Great Maul destroyed. 04229_ Searching scrap... 04229_ Found 69 Matter. 04229_ Found Antigrav System. 04229_ Found Mass Driver. 04229_ Found 63 Matter. Map ----- +----------------------------------------------------+ | ?????????????????????????????????????????????????? | | ?????????????????????????????????????????????????? | | ?????????????????????????????????????????????????? | | ?????????????????????????????????????????????????? | | ?????????????????????????????????????????????????? | | ?????????????????????????????????????????????????? | | ?????????????????????????????????????????????????? | | ?????????????????????????????????????????????????? | | ??????????????????#######????????????????????????? | | ??????????????????#"""""#????????????????????????? | | ??????????????????#"""""#????????????????????????? | | ????????????????###"""""#?????####???????????????? | | ???????????????## # ###???## ##??????????????? | | ???????????????# # # #???# #??????????????? | | ???????????????# ##### #???????????????? | | ???????????????## ## #???????????????? | | ??????########### #????????????????? | | ?????# ##########???????? | | ????? % #???????? | | ??????? ######### ! #???????? | | ??? ########## ###### ####### #???????? | | ???% % [ # #????# #???????? | | ??????# =[* %* s ### %##????# #???##### | | ??????# ######////######ss#?# ###?????# ###?# | | ???????????"""" [%"????#%%### ##%#????# ### #? | | ?????????? " " ????#@ % #?# ## ## | | ?????????? ???# # #?### # | | ?????????# ???# ## ## #???## | | ?????????# ####/+####??# ## ###????????## | | ?????????# ???? ????????# ## #???????##### | | ???????? +???? ????????+ ## #??# ### | | ??????? ?????? ?????????+ ## | | ????????????? ?????????# ## | | ????????????? ??????????# #?######## | | ????????????" ??????????# #????????## | | ????????????"???????????# ?????? | | ????????????????????????# ????? | | ????????????????????????? ????? #### ## | | ????????????????????????? ???? ????# #?## ## | | ????????????????????????? #??????????# #???# ### | | ????????????????????????? ???????????##???# ##?# | | ??????????????????????????????????????????# #### | | ??????????????????????????????????????????# | | ??????????????????????????????????????????## | | ???????????????????????????????????????????# | | ???????????????????????????????????????????# # | | ???????????????????????????????????????????## ##? | | ????????????????????????????????????????????###??? | | ?????????????????????????????????????????????????? | | ?????????????????????????????????????????????????? | +----------------------------------------------------+ Best States ------------- Heat Dissipation 48 Coolant Potential 65 Energy Generation 19 Energy Capacity 315 Matter Stores 300 Matter Capacity 300 Sight Range 16 Robot Scan Range 16 Terrain Scan Range 16 Terrain Scan Density 410 ECM Strength 2 Jamming Range 14 Corruption Block 8 Armor Coverage 150 Propulsion Shielding 33 Weapon Shielding 33 Evasion (%) 55 Targeting Accuracy 16 Target Analysis 7 Core Analysis 6 Recoil Reduction 5 Defensive Hacking 10 Item Schematics ----------------- None Robot Schematics ------------------ None Fabricated ------------ Nothing Repaired ---------- Nothing Studied --------- Field Laser | -8/Materials | Hacked Alien Tech Used ----------------- None Achievements -------------- Hammer Time Challenges ------------ None Game ------ Seed TractorInterceptBoomstick Manual? 0 Play Time 00:45:34 Cumulative 58.9 hours Start 2025.11.10 @ 17:11:36 End 2025.11.10 @ 20:54:44 Sessions 5 Manual Loads 0 Difficulty Rogue Special Mode None Game No. 78 Rogue 78 Adventurer 0 Explorer 0 Win Type - Total 1 Types 1/0/0/0/0/0/0/0/0/0 Lore% 34 Gallery% 42 Achievement% 30 Wizard Run 0 Options --------- Layout 2 ASCII 0 Keyboard 0 Movement Vi Keybinds 0 Fullscreen 1 Font 16/SmallcapsGlow Map View 50x44 Zoom Use 31% Tactical HUD 1 Map Filters NONE Filters NONE Steam SD RUN: 46fc2f57-5fd0-42a0-a565-f6f6ef7232d1